bitfinex/quotes_SOLUSD_20240811
["timestamp","ask_amount","ask_price","bid_price","bid_amount"]
[1723368808934,6.35,157.29,157.23,20.0]
[1723368809139,6.35,157.29,157.24,21.57]
[1723368809307,6.35,157.29,157.26,21.57]
[1723368809508,6.35,157.29,157.27,20.0]
[1723368809940,6.35,157.29,157.24,21.57]
[1723368810243,6.35,157.29,157.25,20.0]
[1723368810408,6.35,157.29,157.23,0.12549]
[1723368810409,6.35,157.29,157.23,20.0]
[1723368811327,6.35,157.29,157.24,21.57]
[1723368811528,6.35,157.29,157.25,20.0]
[1723368812818,16.0121,157.31,157.25,20.0]
[1723368812819,16.0121,157.31,157.26,21.57]
[1723368813140,16.0121,157.31,157.28,21.57]
[1723368813522,16.0121,157.31,157.27,20.0]
[1723368813820,16.0121,157.31,157.28,21.57]
[1723368814025,6.35,157.33,157.3,21.57]
[1723368814214,16.0121,157.35,157.31,20.0]
[1723368814419,16.0121,157.35,157.32,21.57]
[1723368814947,16.0121,157.35,157.33,20.0]
[1723368815146,16.0121,157.35,157.33,21.27105308]
[1723368815324,16.0121,157.35,157.32,0.12549]
[1723368815512,16.0121,157.35,157.32,20.25098]
[1723368817020,400.6,157.59,157.33,27.17]
[1723368817021,16.0121,157.41,157.33,27.17]
[1723368817234,16.0121,157.41,157.35,27.17]
[1723368817443,16.0121,157.41,157.36,20.0]
[1723368817827,16.0121,157.41,157.37,0.12549]
[1723368818038,16.0121,157.41,157.37,27.42098]
[1723368818212,16.0121,157.41,157.39,27.17]
[1723368818419,16.0121,157.41,157.4,20.0]
[1723368819129,16.0121,157.41,157.38,20.0]
[1723368820449,16.0121,157.41,157.36,20.0]
[1723368820622,16.0121,157.41,157.33,27.17]
[1723368820820,16.98649657,157.41,157.33,27.17]
[1723368822048,43.1821,157.41,157.31,27.17]
[1723368822345,16.0121,157.41,157.31,27.17]
[1723368823230,16.0121,157.41,157.32,20.0]
[1723368824138,0.12549,157.4,157.32,20.0]
[1723368824467,0.37647,157.4,157.3,20.0]
[1723368824645,45.37647,157.4,157.3,20.0]
[1723368825024,43.1821,157.41,157.3,20.0]
[1723368825215,43.1821,157.41,157.31,27.17]
[1723368825417,16.0121,157.41,157.35,27.17]
[1723368825749,16.0121,157.41,157.36,20.0]
[1723368826151,16.0121,157.41,157.37,1.27070434]
[1723368827133,16.0121,157.41,157.38,0.25098]
[1723368827430,16.0121,157.41,157.38,20.25098]
[1723368827634,16.0121,157.41,157.38,20.0]
[1723368828146,16.0121,157.41,157.36,20.0]
[1723368828329,16.0121,157.41,157.37,0.12549]
[1723368828531,16.0121,157.41,157.36,20.0]
[1723368829248,16.0121,157.41,157.34,20.12549]
[1723368829553,16.98649657,157.41,157.34,20.0]
[1723368829725,16.0121,157.41,157.36,27.17]
[1723368829929,16.0121,157.41,157.37,20.0]
[1723368831144,16.0121,157.41,157.38,27.17]
[1723368831325,16.0121,157.41,157.39,20.0]
[1723368835037,15.9108,157.44,157.39,20.0]
[1723368836550,15.9108,157.44,157.4,27.29549]
[1723368836722,15.9108,157.44,157.41,20.12549]
[1723368837635,15.9108,157.44,157.41,20.0]
[1723368837834,15.9108,157.44,157.41,41.71]
[1723368838938,15.9108,157.44,157.42,0.25098]
[1723368839362,15.9108,157.44,157.41,41.71]
[1723368840458,22.128,157.49,157.43,21.83549]
[1723368840625,22.128,157.49,157.45,21.71]
[1723368841141,22.128,157.49,157.46,20.0]
[1723368842041,22.128,157.49,157.47,21.71]
[1723368842362,22.128,157.49,157.48,20.0]
[1723368842650,15.9108,157.49,157.48,20.0]
[1723368842833,21.645,157.53,157.48,20.0]
[1723368843633,21.645,157.53,157.45,21.71]
[1723368843634,21.645,157.53,157.46,20.0]
[1723368844326,21.71,157.52,157.41,21.71]
[1723368844532,21.96098,157.52,157.41,21.71]
[1723368844756,21.96098,157.52,157.35,265.8792]
[1723368844757,6.183,157.49,157.39,21.71]
[1723368845047,7.15739657,157.49,157.39,21.71]
[1723368845435,0.97439657,157.48,157.39,21.71]
[1723368845636,15.462,157.47,157.39,21.71]
[1723368845835,15.462,157.47,157.38,27.15]
[1723368846759,15.462,157.47,157.41,0.12549]
[1723368847060,15.462,157.47,157.41,65.50196]
[1723368847732,15.462,157.47,157.41,20.0]
[1723368847932,15.462,157.47,157.4,27.15]
[1723368848154,15.462,157.47,157.41,20.0]
[1723368848342,15.462,157.47,157.36,27.15]
[1723368848548,0.97439657,157.46,157.36,27.15]
[1723368848748,28.12439657,157.46,157.34,27.15]
[1723368849062,0.97439657,157.45,157.34,27.15]
[1723368849432,15.462,157.43,157.32,27.15]
[1723368849646,28.12439657,157.42,157.3,27.15]
[1723368849845,28.24988657,157.42,157.3,27.15]
[1723368850263,45.12549,157.41,157.3,27.15]
[1723368850459,21.645,157.39,157.28,27.15]
[1723368850645,0.97439657,157.38,157.28,27.15]
[1723368850859,21.645,157.39,157.28,27.15]
[1723368851368,21.645,157.39,157.3,27.15]
[1723368851769,21.645,157.39,157.31,20.12549]
[1723368852849,21.645,157.39,157.31,20.0]
[1723368853767,27.15,157.36,157.26,27.15]
[1723368853972,21.645,157.34,157.24,27.15]
[1723368854270,21.645,157.34,157.26,27.15]
[1723368855239,21.645,157.34,157.28,27.15]
[1723368855661,21.645,157.34,157.29,20.0]
[1723368860063,21.645,157.34,157.27,20.0]
[1723368862652,22.61939657,157.34,157.27,20.0]
[1723368862847,22.61939657,157.34,157.26,0.12549]
[1723368863057,22.61939657,157.34,157.25,0.25098]
[1723368863460,22.61939657,157.34,157.22,27.15]
[1723368863661,48.795,157.34,157.22,27.15]
[1723368863879,0.97439657,157.33,157.22,27.15]
[1723368864050,21.645,157.34,157.24,27.15]
[1723368864579,22.61939657,157.34,157.24,27.15]
[1723368864882,22.61939657,157.34,157.25,0.12549]
[1723368865080,21.645,157.34,157.25,0.25098]
[1723368865286,0.97439657,157.33,157.25,65.25098]
[1723368865454,0.97439657,157.32,157.25,20.25098]
[1723368866061,0.97439657,157.32,157.25,20.0]
[1723368867786,0.97439657,157.32,157.25,41.76]
[1723368868159,0.97439657,157.32,157.25,20.0]
[1723368868368,0.97439657,157.32,157.24,0.12549]
[1723368868555,0.97439657,157.32,157.25,21.76]
[1723368868762,21.645,157.34,157.26,65.0]
[1723368869185,21.645,157.34,157.27,21.76]
[1723368869510,21.645,157.34,157.28,20.0]
[1723368869794,22.61939657,157.34,157.28,20.0]
[1723368869974,21.645,157.34,157.28,20.0]
[1723368871763,43.405,157.34,157.28,20.0]
[1723368872002,0.97439657,157.33,157.27,20.0]
[1723368872166,0.97439657,157.32,157.26,20.0]
[1723368872488,43.405,157.34,157.26,20.0]
[1723368872655,0.97439657,157.33,157.26,20.0]
[1723368872859,43.405,157.34,157.26,20.0]
[1723368873496,21.645,157.34,157.27,21.76]
[1723368873799,21.645,157.34,157.14,32.27149501]
[1723368873800,21.645,157.34,157.28,20.0]
[1723368873978,0.97439657,157.33,157.28,20.0]
[1723368874178,0.97439657,157.33,157.26,20.0]
[1723368875087,21.645,157.34,157.27,0.12549]
[1723368875088,22.61939657,157.34,157.27,0.12549]
[1723368875270,22.61939657,157.34,157.26,20.0]
[1723368876699,21.645,157.34,157.26,20.0]
[1723368877283,0.97439657,157.33,157.29,21.76]
[1723368877488,21.645,157.34,157.31,21.76]
[1723368879284,21.645,157.34,157.32,20.0]
[1723368879526,15.462,157.34,157.33,21.76]
[1723368879701,15.462,157.34,157.33,41.76]
[1723368880004,15.462,157.34,157.3,21.76]
[1723368880180,15.462,157.34,157.31,20.0]
[1723368881611,21.3724,157.38,157.32,21.76]
[1723368881819,21.3724,157.38,157.35,21.76]
[1723368881990,21.3724,157.38,157.36,20.0]
[1723368882620,15.2906,157.42,157.37,21.76]
[1723368882912,15.2906,157.42,157.39,21.76]
[1723368883108,15.2906,157.42,157.4,20.0]
[1723368883804,15.2906,157.42,157.41,21.76]
[1723368884013,15.2906,157.42,157.41,41.76]
[1723368884388,15.2906,157.42,157.41,20.0]
[1723368884703,15.2906,157.42,157.4,20.0]
[1723368885719,15.2906,157.42,157.38,20.0]
[1723368886091,16.26499657,157.42,157.38,20.0]
[1723368886409,15.2906,157.42,157.38,20.0]
[1723368886595,16.26499657,157.42,157.35,21.76]
[1723368886798,15.2906,157.42,157.35,21.76]
[1723368887020,0.12549,157.41,157.33,21.76]
[1723368887184,45.37647,157.41,157.33,21.76]
[1723368888006,50.79776657,157.41,157.31,21.76]
[1723368888214,0.12549,157.4,157.31,21.76]
[1723368888425,0.37647,157.4,157.31,21.76]
[1723368888631,0.12549,157.39,157.31,21.76]
[1723368888920,6.5702,157.38,157.31,21.76]
[1723368889095,15.2906,157.37,157.31,21.76]
[1723368891120,15.2906,157.37,157.23,1.27130842]
[1723368891311,15.2906,157.37,157.29,21.76]
[1723368892624,15.2906,157.37,157.3,20.0]
[1723368893120,15.2906,157.37,157.31,21.76]
[1723368893335,15.2906,157.37,157.32,20.0]
[1723368896418,15.2906,157.37,157.3,20.0]
[1723368897218,15.2906,157.37,157.33,21.76]
[1723368897423,15.2906,157.37,157.34,20.0]
[1723368901936,15.2906,157.37,157.35,21.76]
[1723368902115,15.8315,157.41,157.36,20.0]
[1723368902734,15.8315,157.41,157.33,21.76]
[1723368902910,15.8315,157.41,157.34,20.0]
[1723368903527,45.0,157.4,157.34,20.0]
[1723368904443,45.0,157.4,157.32,20.0]
[1723368905604,15.8315,157.41,157.33,21.76]
[1723368905809,15.8315,157.41,157.34,20.0]
[1723368906007,15.8315,157.41,157.35,21.76]
[1723368906209,15.8315,157.41,157.36,20.0]
[1723368908010,15.8315,157.41,157.37,21.76]
[1723368908215,15.8315,157.41,157.38,20.0]
[1723368908818,15.8315,157.41,157.37,21.76]
[1723368909239,15.8315,157.41,157.38,20.0]
[1723368909428,6.1989,157.42,157.38,20.0]
[1723368909429,15.8315,157.45,157.39,22.01098]
[1723368909621,15.8315,157.45,157.41,21.76]
[1723368911336,15.8315,157.45,157.4,20.0]
[1723368913433,15.8315,157.45,157.41,21.76]
[1723368913632,15.8315,157.45,157.42,20.0]
[1723368914246,15.8315,157.45,157.43,21.76]
[1723368914420,15.8315,157.45,157.44,20.0]
[1723368915119,15.8315,157.49,157.44,20.0]
[1723368915320,15.8315,157.49,157.44,21.27018383]
[1723368915544,15.8315,157.49,157.44,20.0]
[1723368917431,15.8315,157.49,157.42,20.0]
[1723368918522,15.8315,157.49,157.43,21.76]
[1723368918835,0.97439657,157.48,157.44,20.0]
[1723368919032,0.97439657,157.48,157.39,21.76]
[1723368919654,6.1989,157.47,157.39,21.76]
[1723368919956,6.1989,157.47,157.35,21.76]
[1723368919957,37.5915,157.45,157.35,21.76]
[1723368920141,46.09988657,157.44,157.35,21.76]
[1723368920338,45.12549,157.44,157.35,21.76]
[1723368921644,45.12549,157.44,157.36,20.0]
[1723368922247,6.24089,157.43,157.36,20.0]
[1723368922448,6.1154,157.43,157.36,20.0]
[1723368925369,15.8616,157.42,157.36,20.0]
[1723368925663,16.83599657,157.42,157.36,20.0]
[1723368925959,16.83599657,157.42,157.34,20.0]
[1723368926440,16.83599657,157.42,157.33,21.76]
[1723368926942,21.76,157.41,157.31,21.76]
[1723368927138,45.97439657,157.4,157.31,21.76]
[1723368927337,21.76,157.37,157.28,21.76]
[1723368927642,21.76,157.35,157.21,3.5172]
[1723368927850,45.37647,157.34,157.25,21.76]
[1723368928051,45.37647,157.34,157.19,26.59703426]
[1723368928052,15.8616,157.32,157.19,6.9247465]
[1723368928238,0.97439657,157.31,157.22,21.76]
[1723368928444,15.8616,157.32,157.24,21.76]
[1723368930042,16.83599657,157.32,157.24,21.76]
[1723368930559,15.8616,157.32,157.25,20.0]
[1723368931136,15.8616,157.32,157.26,21.76]
[1723368931464,15.8616,157.32,157.27,20.0]
[1723368931763,15.8616,157.32,157.28,21.76]
[1723368931969,15.8616,157.32,157.29,20.0]
[1723368933643,15.8616,157.32,157.27,20.0]
[1723368934035,15.8616,157.32,157.26,21.76]
[1723368935354,15.8616,157.32,157.27,20.0]
[1723368937937,15.8616,157.32,157.28,21.88549]
[1723368938265,15.8616,157.32,157.29,20.0]
[1723368942672,16.83599657,157.32,157.29,20.0]
[1723368943168,15.8616,157.32,157.29,20.0]
[1723368943365,15.8616,157.32,157.27,20.0]
[1723368943565,16.83599657,157.32,157.27,20.0]
[1723368944264,15.8616,157.32,157.27,20.0]
[1723368944447,15.8616,157.32,157.24,21.76]
[1723368945164,15.8616,157.32,157.17,1.27183099]
[1723368945372,15.8616,157.32,157.23,21.76]
[1723368945746,15.8616,157.32,157.24,20.0]
[1723368947263,16.83599657,157.32,157.24,20.0]
[1723368948781,15.8616,157.32,157.24,20.0]
[1723368951980,45.0,157.31,157.23,21.76]
[1723368952186,0.97439657,157.3,157.23,21.76]
[1723368952488,0.97439657,157.29,157.23,21.76]
[1723368952879,45.12549,157.31,157.23,21.76]
[1723368953190,22.89989,157.3,157.24,20.0]
[1723368953387,45.37647,157.29,157.2,41.76]
[1723368953759,45.37647,157.29,157.2,21.76]
[1723368955856,45.37647,157.29,157.21,20.0]
[1723368956353,46.35086657,157.29,157.21,20.0]
[1723368956556,45.37647,157.29,157.21,20.0]
[1723368958086,49.82677,157.29,157.21,20.0]
[1723368958283,50.80116657,157.29,157.21,20.0]
[1723368958481,21.88549,157.28,157.21,20.0]
[1723368958692,45.12549,157.27,157.21,20.0]
[1723368958863,16.2923,157.26,157.19,20.0]
[1723368960197,16.2923,157.26,157.2,21.76]
[1723368960402,16.2923,157.26,157.22,21.76]
[1723368960694,16.2923,157.26,157.24,21.76]
[1723368960872,16.2923,157.26,157.25,20.0]
[1723368961668,22.1135,157.3,157.25,20.0]
[1723368963771,22.1135,157.3,157.26,21.76]
[1723368963970,22.1135,157.3,157.27,20.0]
[1723368965481,15.6314,157.3,157.27,20.0]
[1723368966283,6.4976,157.33,157.28,21.76]
[1723368966595,6.4976,157.33,157.29,20.0]
[1723368967297,6.4976,157.33,157.26,21.76]
[1723368967472,6.4976,157.33,157.27,20.0]
[1723368968592,6.4976,157.33,157.28,21.76]
[1723368968779,6.4976,157.33,157.3,21.76]
[1723368968975,15.6314,157.34,157.31,20.0]
[1723368970585,15.6314,157.34,157.29,20.0]
[1723368971398,15.6314,157.34,157.26,21.76]
[1723368971897,15.6314,157.34,157.28,21.76]
[1723368972908,15.6314,157.34,157.29,20.0]
[1723368973106,6.4976,157.33,157.21,5.42020717]
[1723368973404,6.4976,157.33,157.24,21.76]
[1723368973907,28.2576,157.33,157.24,21.76]
[1723368974203,28.2576,157.33,157.22,21.76]
[1723368974204,37.3914,157.31,157.22,21.76]
[1723368974710,37.3914,157.31,157.2,21.76]
[1723368975004,21.88549,157.3,157.2,21.76]
[1723368975414,0.12549,157.3,157.2,21.76]
[1723368975600,45.25098,157.3,157.2,21.76]
[1723368976481,15.6314,157.28,157.18,21.76]
[1723368976686,37.3914,157.28,157.18,21.76]
[1723368977112,37.3914,157.28,157.19,20.0]
[1723368980229,38.36579657,157.28,157.2,0.12549]
[1723368980408,38.36579657,157.28,157.19,20.0]
[1723368980715,37.3914,157.28,157.19,20.0]
[1723368981121,38.36579657,157.28,157.19,20.0]
[1723368981325,15.6314,157.28,157.2,21.76]
[1723368981512,15.6314,157.28,157.21,20.0]
[1723368985327,37.3914,157.28,157.21,20.0]
[1723368985622,45.12549,157.27,157.19,20.0]
[1723368985820,0.97439657,157.26,157.19,20.0]
[1723368987404,37.3914,157.28,157.19,20.0]
[1723368989027,15.6314,157.28,157.2,21.76]
[1723368989198,15.6314,157.28,157.21,20.0]
[1723368991320,15.6314,157.28,157.22,1.27190051]
[1723368991517,15.6314,157.28,157.21,20.0]
[1723368992027,15.6314,157.28,157.22,21.76]
[1723368992198,15.6314,157.28,157.23,20.0]
[1723368993627,15.6314,157.28,157.21,20.0]
[1723368999317,15.6314,157.28,157.22,23.1573795]
[1723368999513,15.6314,157.28,157.24,21.76]
[1723368999715,15.6314,157.28,157.25,21.27171613]
[1723368999908,15.6314,157.28,157.25,20.0]
[1723369001729,15.6314,157.28,157.25,21.27165019]
[1723369002228,15.6314,157.28,157.26,21.76]
[1723369002437,15.6314,157.28,157.27,20.0]
[1723369003308,15.6314,157.28,157.18,6.69190487]
[1723369003624,15.6314,157.28,157.21,21.76]
[1723369004538,37.3914,157.28,157.19,21.76]
[1723369004829,0.97439657,157.27,157.17,21.76]
[1723369005031,0.97439657,157.26,157.17,21.76]
[1723369005608,37.3914,157.28,157.17,21.76]
[1723369006137,37.3914,157.28,157.18,20.0]
[1723369009142,41.842,157.28,157.18,20.0]
[1723369009323,21.76,157.26,157.18,20.0]
[1723369009651,16.3078,157.24,157.17,21.76]
[1723369009806,16.3078,157.24,157.16,0.843774]
[1723369009807,16.3078,157.21,157.16,0.843774]
[1723369010126,27.1978,157.21,157.16,0.843774]
[1723369010321,16.3078,157.21,157.16,0.843774]
[1723369010509,16.3078,157.21,157.16,11.733774]
[1723369011139,16.3078,157.21,157.17,20.0]
[1723369011515,16.3078,157.21,157.16,20.843774]
[1723369011941,16.3078,157.21,157.16,0.843774]
[1723369019140,0.97439657,157.2,157.16,0.843774]
[1723369019529,16.3078,157.16,157.09,9.97011363]
[1723369019748,6.239,157.15,157.06,21.78]
[1723369019951,28.019,157.15,157.06,21.78]
[1723369020154,16.3078,157.14,157.06,21.78]
[1723369021224,16.3078,157.14,157.08,21.78]
[1723369022541,16.3078,157.14,157.09,20.0]
[1723369023629,16.3078,157.14,157.06,21.78]
[1723369023832,16.3078,157.14,157.04,21.78]
[1723369023833,45.25098,157.13,157.04,21.78]
[1723369024139,45.37647,157.13,157.04,21.78]
[1723369024929,16.3078,157.14,157.04,21.78]
[1723369025159,16.3078,157.14,157.06,21.78]
[1723369025858,16.3078,157.14,157.07,20.0]
[1723369026152,45.37647,157.13,157.05,20.0]
[1723369026741,67.15647,157.13,157.05,20.0]
[1723369027044,0.97439657,157.12,157.02,21.78]
[1723369027255,15.8087,157.1,157.02,21.78]
[1723369028257,15.8087,157.1,157.03,20.0]
[1723369029162,15.8087,157.1,157.04,21.78]
[1723369029343,15.8087,157.1,157.05,20.0]
[1723369031537,15.8087,157.1,157.08,21.78]
[1723369031737,15.8087,157.1,157.09,20.0]
[1723369033857,15.8087,157.1,157.09,30.9]
[1723369034348,21.9588,157.16,157.09,30.9]
[1723369035367,21.9588,157.16,157.13,10.9]
[1723369036350,21.9588,157.16,157.15,10.9]
[1723369040647,15.8087,157.16,157.15,10.9]
[1723369040850,21.9588,157.2,157.15,10.9]
[1723369041245,21.9588,157.2,157.16,20.0]
[1723369041858,0.97439657,157.19,157.16,20.0]
[1723369042049,21.9588,157.2,157.16,20.0]
[1723369042956,21.9588,157.2,157.17,10.9]
[1723369043353,21.9588,157.2,157.16,20.0]
[1723369044180,0.97439657,157.19,157.15,10.9]
[1723369044365,21.9588,157.2,157.16,20.0]
[1723369045148,21.9588,157.2,157.11,0.12549]
[1723369045474,21.9588,157.2,157.14,10.9]
[1723369045774,21.9588,157.2,157.15,20.0]
[1723369046695,21.9588,157.2,157.16,10.9]
[1723369049510,21.9588,157.2,157.18,10.9]
[1723369049511,15.8087,157.2,157.18,10.9]
[1723369050199,15.8087,157.2,157.16,10.9]
[1723369050492,15.8087,157.2,157.17,20.0]
[1723369050697,15.8087,157.2,157.15,20.0]
[1723369051491,15.8087,157.2,157.16,10.9]
[1723369051700,15.8087,157.2,157.17,20.0]
[1723369052482,15.8087,157.2,157.16,10.9]
[1723369052685,15.8087,157.2,157.18,10.9]
[1723369053904,15.8087,157.2,157.17,20.0]
[1723369055373,15.8087,157.2,157.17,21.2723767]
[1723369055773,15.8087,157.2,157.18,10.9]
[1723369058003,6.2121,157.24,157.18,10.9]
[1723369058298,6.2121,157.24,157.22,10.9]
[1723369059299,6.2121,157.24,157.2,10.9]
[1723369059509,6.2121,157.24,157.21,20.0]
[1723369060597,15.2817,157.25,157.21,20.0]
[1723369060900,15.2817,157.25,157.22,10.9]
[1723369061080,15.2817,157.25,157.23,20.0]
[1723369062277,6.2121,157.27,157.23,20.0]
[1723369062979,0.97439657,157.26,157.23,20.0]
[1723369063178,6.2121,157.27,157.23,20.0]
[1723369065102,0.97439657,157.26,157.23,20.0]
[1723369065301,0.97439657,157.25,157.2,10.9]
[1723369065474,7.18649657,157.27,157.21,20.0]
[1723369065673,6.2121,157.27,157.21,20.0]
[1723369065991,7.18649657,157.27,157.21,20.0]
[1723369066904,6.2121,157.27,157.21,20.0]
[1723369068496,6.2121,157.27,157.22,10.9]
[1723369069710,0.97439657,157.26,157.21,20.0]
[1723369070006,6.2121,157.27,157.21,20.0]
[1723369071298,10.9,157.23,157.11,1.27205638]
[1723369071609,10.9,157.23,157.15,10.9]
[1723369071811,15.352,157.23,157.15,10.9]
[1723369071995,10.9,157.23,157.15,10.9]
[1723369072382,10.9,157.23,157.09,19.75686115]
[1723369072697,10.9,157.21,157.09,18.48439094]
[1723369072908,10.9,157.21,157.14,10.9]
[1723369074077,10.9,157.21,157.15,20.0]
[1723369074506,27.3454,157.18,157.09,7.71919094]
[1723369074725,0.97439657,157.17,157.1,10.9]
[1723369074896,27.3454,157.18,157.1,10.9]
[1723369075912,6.5339,157.17,157.06,0.12549]
[1723369076111,6.5339,157.17,157.08,10.9]
[1723369076112,10.9,157.16,157.08,10.9]
[1723369076325,10.9,157.14,157.08,10.9]
[1723369076623,16.4454,157.13,157.08,10.9]
[1723369077400,17.41979657,157.13,157.08,10.9]
[1723369078589,16.4454,157.13,157.08,10.9]
[1723369079193,10.9,157.12,157.02,1.10537389]
[1723369079404,10.9,157.12,157.05,10.9]
[1723369079587,16.4454,157.13,157.06,20.0]
[1723369080306,16.4454,157.13,157.07,10.9]
[1723369080882,6.5339,157.12,157.07,10.9]
[1723369081415,6.5339,157.12,157.06,30.9]
[1723369084188,0.97439657,157.11,157.06,20.0]
[1723369084388,17.4339,157.12,157.04,10.9]
[1723369084816,0.97439657,157.11,157.04,10.9]
[1723369085593,0.97439657,157.11,157.05,20.0]
[1723369085928,18.40829657,157.12,157.05,20.0]
[1723369086100,18.40829657,157.12,157.04,10.9]
[1723369086625,10.9,157.1,157.02,10.9]
[1723369086799,10.9,157.1,157.03,20.0]
[1723369087124,15.1037,157.08,157.03,20.0]
[1723369087618,18.26419657,157.07,157.0,0.843774]
[1723369087789,17.2898,157.07,157.0,0.843774]
[1723369087996,10.9,157.05,157.0,0.843774]
[1723369088315,15.1037,157.03,157.0,0.843774]
[1723369088818,0.97439657,157.02,157.0,0.843774]
[1723369089732,0.97439657,157.01,157.0,0.843774]
[1723369089927,18.26419657,157.01,157.0,0.843774]
[1723369090120,18.26419657,157.01,156.92,10.9]
[1723369090292,7.36419657,157.01,156.92,10.9]
[1723369091019,7.36419657,157.01,156.86,13.72036811]
[1723369091020,10.9,156.99,156.86,13.72036811]
[1723369091223,32.3935,156.97,156.86,13.72036811]
[1723369091525,10.9,156.93,156.86,10.9]
[1723369091729,21.87,156.95,156.84,21.87]
[1723369091903,22.84439657,156.95,156.84,21.87]
[1723369092303,21.4935,156.91,156.8,7.71919094]
[1723369092503,21.4935,156.91,156.83,21.87]
[1723369093714,21.4935,156.91,156.84,20.0]
[1723369094029,21.4935,156.91,156.86,21.87]
[1723369094247,21.4935,156.91,156.87,20.0]
[1723369094406,21.4935,156.91,156.88,1.2746317]
[1723369094603,21.4935,156.91,156.88,21.87]
[1723369094829,15.1037,156.95,156.89,20.0]
[1723369095825,15.1037,156.95,156.9,21.87]
[1723369096404,15.1037,156.95,156.91,20.0]
[1723369096636,20.53809657,156.95,156.86,21.87]
[1723369096928,36.9737,156.95,156.87,20.0]
[1723369097347,45.0,156.94,156.87,20.0]
[1723369097832,15.1037,156.95,156.87,20.0]
[1723369098339,15.1037,156.95,156.88,21.87]
[1723369098926,15.1037,156.95,156.87,20.0]
[1723369099331,16.07809657,156.95,156.87,20.0]
[1723369100241,37.94809657,156.95,156.87,20.0]
[1723369100538,42.40809657,156.95,156.87,20.0]
[1723369100737,45.50196,156.94,156.87,20.0]
[1723369100948,45.50196,156.94,156.85,20.843774]
[1723369101113,0.12549,156.94,156.85,20.843774]
[1723369101316,16.4905,156.92,156.85,20.843774]
[1723369101642,0.97439657,156.91,156.85,0.843774]
[1723369101941,16.4905,156.92,156.86,20.0]
[1723369102266,16.4905,156.92,156.85,0.843774]
[1723369102814,45.25098,156.91,156.85,0.843774]
[1723369103014,67.24647,156.91,156.85,0.843774]
[1723369103244,22.96988657,156.91,156.85,0.843774]
[1723369103445,21.87,156.91,156.85,0.843774]
[1723369103621,16.61599,156.92,156.85,0.843774]
[1723369103814,45.25098,156.91,156.85,0.843774]
[1723369104015,0.12549,156.91,156.85,0.843774]
[1723369104218,16.4905,156.92,156.85,0.843774]
[1723369106340,45.37647,156.91,156.85,0.843774]
[1723369106753,67.24647,156.91,156.85,0.843774]
[1723369108753,17.46489657,156.92,156.85,0.843774]
[1723369108950,16.4905,156.92,156.85,0.843774]
[1723369109257,26.3311,156.91,156.85,0.843774]
[1723369109441,21.87,156.89,156.85,0.843774]